fUSD/lending_fUSD_20251003
["ID","MTS","AMOUNT","RATE_DAILY","PERIOD"]
[388888329,1759469458145,-210.452804,0.00021966,7]
[388888330,1759469458155,-240.156882,0.00021966,7]
[388888331,1759469458164,-210.452804,0.00021966,7]
[388888332,1759469458173,-240.156882,0.00021966,7]
[388888333,1759469458183,-151.0,0.00021966,7]
[388888334,1759469458192,-240.156872,0.00021966,7]
[388888335,1759469458203,-210.452803,0.00021966,7]
[388888336,1759469458213,-151.0,0.00021966,7]
[388888337,1759469458223,-696.973156,0.00021966,7]
[388888338,1759469458233,-696.973156,0.00021966,7]
[388888339,1759469458242,-696.973156,0.00021966,7]
[388888340,1759469458252,-696.973159,0.00021966,7]
[388888341,1759469458261,-5800.0,0.00021966,2]
[388888342,1759469458270,-5800.0,0.00021966,2]
[388888343,1759469458280,-400.0,0.0002197,2]
[388888344,1759469458289,-150.0,0.00021973,2]
[388888345,1759469458299,-5800.0,0.00021975,2]
[388888346,1759469458308,-5800.0,0.00021975,2]
[388888347,1759469458318,-10777.54421096,0.00021976,2]
[388888348,1759469458327,-562.85453906,0.00021979,2]
[388888349,1759469458336,-6987.26,0.00021979,2]
[388888350,1759469458346,-352743.77639248,0.0002198,2]
[388888351,1759469459152,-5745.19358968,0.0002198,2]
[388888352,1759469459164,-553.7180093,0.0002198,2]
[388888353,1759469459176,-8672.28000571,0.0002198,2]
[388888354,1759469459188,-4787.8092,0.0002198,2]
[388888355,1759469459199,-396.93837601,0.0002198,2]
[388888356,1759469459210,-949.65,0.0002198,2]
[388888357,1759469459221,-737.81325717,0.0002198,2]
[388888358,1759469459346,-46862.77977328,0.0002198,2]
[388888359,1759469459362,-284.68328364,0.0002198,2]
[388888360,1759469459466,-1123.71239335,0.0002198,2]
[388888361,1759469459478,-484.28378206,0.0002198,2]
[388888366,1759469827283,698.6,0.00010214,2]
[388888367,1759469827786,698.6,0.00010751,2]
[388888368,1759469827969,698.6,0.00011289,2]
[388888369,1759469828132,698.6,0.00011826,2]
[388888370,1759469828369,698.6,0.00012364,2]
[388888371,1759469828528,698.6,0.00012901,2]
[388888372,1759469828673,698.6,0.00013439,2]
[388888373,1759469828932,698.6,0.00013977,2]
[388888374,1759469829085,698.6,0.00014514,2]
[388888375,1759469829237,464.26845888,0.00015052,2]
[388888376,1759469829263,234.33154112,0.00015052,2]
[388888377,1759469829460,698.6,0.00015589,2]
[388888378,1759469829665,698.6,0.00016127,2]
[388888380,1759469987081,600.0,0.00013888,2]
[388888381,1759469988258,347.74070019,0.00014103,2]
[388888382,1759469988288,252.25929981,0.00014103,2]
[388888383,1759469989980,600.0,0.00014318,2]
[388888384,1759469991792,523.38889983,0.00014533,2]
[388888385,1759469991815,76.61110017,0.00014533,2]
[388888386,1759469993298,600.0,0.00014748,2]
[388888387,1759469994973,467.57975042,0.00014963,2]
[388888388,1759469994998,132.42024958,0.00014963,2]
[388888389,1759469997375,600.0,0.00015177,2]
[388888390,1759469998283,600.0,0.00015392,2]
[388888391,1759469999896,600.0,0.00015607,2]
[388888392,1759470001466,600.0,0.00015822,2]
[388888393,1759470003288,600.0,0.00016037,2]
[388888394,1759470005342,600.0,0.00016252,2]
[388888395,1759470006518,600.0,0.00016467,2]
[388888398,1759470216786,7203.02212052,0.0003,120]
[388888399,1759470259215,600.0,0.0001387,2]
[388888400,1759470260183,600.0,0.00014085,2]
[388888401,1759470261977,600.0,0.000143,2]
[388888402,1759470263588,467.57975042,0.00014514,2]
[388888403,1759470263612,132.42024958,0.00014514,2]
[388888404,1759470264672,600.0,0.00014729,2]
[388888405,1759470266331,152.0,0.00014943,2]
[388888406,1759470266354,448.0,0.00014943,2]
[388888407,1759470268661,600.0,0.00015158,2]
[388888408,1759470270859,600.0,0.00015372,2]
[388888409,1759470272072,600.0,0.00015587,2]
[388888410,1759470273995,600.0,0.00015802,2]
[388888411,1759470275332,600.0,0.00016016,2]
[388888412,1759470277324,600.0,0.00016231,2]
[388888413,1759470279687,600.0,0.00016445,2]
[388888415,1759470432482,18000.0,0.00030136,120]
[388888416,1759470484824,180.0,0.00014887,2]
[388888417,1759470486932,180.0,0.00014887,2]
[388888418,1759470510146,9600.0,0.00030136,120]
[388888419,1759470539766,357.62,0.00030137,120]
[388888436,1759470633117,-250.0,0.00016662,2]
[388888437,1759470633133,-303.85299994,0.00016664,2]
[388888438,1759470633305,-394.74700006,0.00016664,2]
[388888439,1759470633315,-254.77713826,0.00016858,2]
[388888440,1759470633324,-250.0,0.00017,2]
[388888441,1759470633334,-7500.0,0.00017201,10]
[388888442,1759470633343,-698.6,0.00017202,2]
[388888443,1759470633353,-698.6,0.00017739,2]
[388888444,1759470633362,-151.0,0.00017915,2]
[388888445,1759470633371,-151.0,0.00017915,2]
[388888446,1759470633380,-151.0,0.00017915,2]
[388888447,1759470633389,-168.81993197,0.00017915,2]
[388888448,1759470633399,-151.0,0.00017915,2]
[388888449,1759470633408,-151.0,0.00017915,2]
[388888450,1759470633417,-151.0,0.00017915,2]
[388888451,1759470633426,-151.0,0.00017915,2]
[388888452,1759470633436,-151.0,0.00017915,2]
[388888453,1759470633445,-151.0,0.00017915,2]
[388888454,1759470633455,-151.0,0.00017915,2]
[388888455,1759470633464,-212.24530523,0.00017915,2]
[388888456,1759470633474,-500.0,0.00017915,2]
[388888457,1759470633483,-304.12452753,0.00017915,2]
[388888458,1759470633492,-2355.8535309,0.00017926,2]
[388888459,1759470633504,-12018.89205836,0.00017926,2]
[388888460,1759470633513,-698.6,0.00018277,2]
[388888461,1759470633524,-14588.0894358,0.000183,2]
[388888462,1759470633542,-12116.25109861,0.000183,2]
[388888463,1759470633555,-250.0,0.00018326,2]
[388888464,1759470633565,-300.0,0.00018326,2]
[388888465,1759470633574,-470.7006454,0.00018328,2]
[388888466,1759470633584,-2500.0,0.00018328,2]
[388888467,1759470633593,-150.0,0.00018328,2]
[388888468,1759470633603,-698.6,0.00018815,2]
[388888469,1759470633612,-250.0,0.00018899,2]
[388888470,1759470633622,-276.4,0.00019081,2]
[388888471,1759470633632,-3231.38,0.00019151,2]
[388888472,1759470633642,-151.0,0.00019178,2]
[388888473,1759470633651,-207.22392399,0.00019178,2]
[388888474,1759470633661,-698.6,0.00019352,2]
[388888475,1759470633670,-250.0,0.00019383,2]
[388888476,1759470633680,-8646.71657876,0.00019458,2]
[388888484,1759470639231,-693.48215818,0.00019458,2]
[388888485,1759470639264,-1121.2,0.00019458,2]
[388888486,1759470640821,-1625.34854936,0.00019458,2]
[388888487,1759470640831,-182.7109848,0.000195,2]
[388888488,1759470640841,-167.21,0.00019691,2]
[388888489,1759470640850,-182.7109848,0.000197,2]
[388888490,1759470640859,-370.55283938,0.0001972,2]
[388888491,1759470640869,-156.587,0.00019726,2]
[388888492,1759470640878,-698.6,0.0001989,2]
[388888493,1759470640888,-2631.75590331,0.00019908,2]
[388888494,1759470640898,-150.0,0.0002,2]
[388888495,1759470640907,-199.17654747,0.00020049,2]
[388888496,1759470640916,-241.42611814,0.00020099,2]
[388888497,1759470640926,-283.67568882,0.00020148,2]
[388888498,1759470640936,-162.43,0.00020167,2]
[388888499,1759470640946,-1519.95759086,0.00020195,2]
[388888500,1759470640955,-325.9252595,0.00020197,2]
[388888501,1759470640965,-150.0,0.000202,2]
[388888502,1759470640975,-180.18404212,0.00020207,2]
[388888503,1759470640985,-368.17483017,0.00020246,2]
[388888504,1759470640995,-303.67209424,0.00020274,2]
[388888505,1759470641004,-410.42440085,0.00020296,2]
[388888506,1759470641016,-452.67397152,0.00020345,2]
[388888507,1759470641026,-494.9235422,0.00020394,2]
[388888508,1759470641036,-744.87965246,0.00020407,2]
[388888509,1759470641048,-2778.65931989,0.00020407,2]
[388888510,1759470641057,-698.6,0.00020427,2]
[388888511,1759470641068,-537.17311287,0.00020444,2]
[388888512,1759470641078,-579.42268355,0.00020493,2]
[388888513,1759470641088,-451.81020527,0.00020542,2]
[388888514,1759470641100,-169.86204895,0.00020542,2]
[388888515,1759470641111,-663.9218249,0.00020591,2]
[388888516,1759470641120,-802.40451066,0.000206,2]
[388888517,1759470641129,-854.11245204,0.000206,2]
[388888518,1759470641139,-576.09899116,0.000206,2]
[388888519,1759470641148,-706.17139557,0.00020641,2]
[388888520,1759470641157,-5000.0,0.00020647,2]
[388888521,1759470641166,-512.25702376,0.00020673,2]
[388888522,1759470641175,-409.42544001,0.00020673,2]
[388888523,1759470641184,-504.42864086,0.00020673,2]
[388888524,1759470641193,-157.92,0.00020687,2]
[388888525,1759470641202,-748.42096625,0.0002069,2]
[388888526,1759470641212,-151.0,0.00020697,2]
[388888527,1759470641222,-500.0,0.00020699,2]
[388888528,1759470641232,-4097.39583015,0.000207,2]
[388888536,1759470644373,-248.0,0.00020539,2]
[388888537,1759470644384,-2351.62282328,0.000207,2]
[388888538,1759470644395,-21985.63988538,0.000207,2]
[388888539,1759470644425,-296.40003236,0.000207,2]
[388888540,1759470644437,-355613.15990907,0.000207,2]
[388888541,1759470644446,-155.08783353,0.000207,2]
[388888542,1759470644456,-601.3376128,0.000207,2]
[388888543,1759470644466,-322.6107,0.000207,2]
[388888544,1759470644476,-500.0,0.000207,2]
[388888545,1759470644485,-500.0,0.000207,2]
[388888546,1759470644495,-500.0,0.000207,2]
[388888547,1759470644505,-500.0,0.000207,2]
[388888548,1759470644515,-500.0,0.000207,2]
[388888549,1759470644525,-200.0,0.000207,2]
[388888550,1759470644535,-500.0,0.000207,2]
[388888551,1759470644544,-200.0,0.000207,2]
[388888552,1759470644555,-500.0,0.000207,2]
[388888553,1759470644564,-200.0,0.000207,2]
[388888554,1759470644574,-500.0,0.000207,2]
[388888555,1759470644583,-200.0,0.000207,2]
[388888556,1759470644593,-500.0,0.000207,2]
[388888557,1759470644602,-200.0,0.000207,2]
[388888558,1759470644612,-200.0,0.000207,2]
[388888559,1759470644622,-500.0,0.000207,2]
[388888560,1759470644632,-200.0,0.000207,2]
[388888561,1759470644642,-500.0,0.000207,2]
[388888562,1759470644652,-500.0,0.000207,2]
[388888563,1759470644662,-500.0,0.000207,2]
[388888564,1759470644672,-200.0,0.000207,2]
[388888565,1759470644682,-500.0,0.000207,2]
[388888566,1759470644692,-500.0,0.000207,2]
[388888567,1759470644702,-500.0,0.000207,2]
[388888568,1759470644714,-229.24644817,0.000207,2]
[388888569,1759470644724,-500.0,0.000207,2]
[388888570,1759470644734,-500.0,0.000207,2]
[388888571,1759470644749,-500.0,0.000207,2]
[388888572,1759470644760,-500.0,0.000207,2]
[388888573,1759470644770,-500.0,0.000207,2]
[388888574,1759470644780,-500.0,0.000207,2]
[388888575,1759470644792,-500.0,0.000207,2]
[388888576,1759470644803,-500.0,0.000207,2]
[388888577,1759470644813,-500.0,0.000207,2]
[388888578,1759470644823,-500.0,0.000207,2]
[388888579,1759470644833,-500.0,0.000207,2]
[388888580,1759470644844,-500.0,0.000207,2]
[388888581,1759470644853,-500.0,0.000207,2]
[388888582,1759470644863,-151.09931554,0.000207,2]
[388888583,1759470644873,-500.0,0.000207,2]
[388888584,1759470644882,-500.0,0.000207,2]
[388888585,1759470644891,-500.0,0.000207,2]
[388888586,1759470644901,-500.0,0.000207,2]
[388888587,1759470644910,-500.0,0.000207,2]
[388888588,1759470644920,-500.0,0.000207,2]
[388888589,1759470644930,-500.0,0.000207,2]
[388888590,1759470644939,-500.0,0.000207,2]
[388888591,1759470644949,-500.0,0.000207,2]
[388888592,1759470644958,-500.0,0.000207,2]
[388888593,1759470644968,-500.0,0.000207,2]
[388888594,1759470644977,-500.0,0.000207,2]
[388888595,1759470644987,-326.16182833,0.0002072,2]
[388888596,1759470644996,-669.71,0.00020741,2]
[388888597,1759470645005,-28321.57389192,0.00020746,2]
[388888598,1759470645016,-802.40451064,0.00020753,2]
[388888599,1759470645026,-1564.0,0.00020795,2]
[388888600,1759470645035,-1000.0,0.00020817,2]
[388888601,1759470645046,-368.44206533,0.00020845,2]
[388888602,1759470645059,-854.11245203,0.00020856,2]
[388888603,1759470645069,-1564.0,0.00020867,2]
[388888604,1759470645079,-434.23,0.00020885,2]
[388888605,1759470645088,-406.81,0.00020885,2]
[388888606,1759470645097,-12863.55,0.000209,2]
[388888607,1759470645106,-12863.55,0.000209,2]
[388888608,1759470645116,-12863.55,0.000209,2]
[388888609,1759470645126,-8575.7,0.000209,2]
[388888610,1759470645136,-8575.7,0.000209,2]
[388888611,1759470645145,-8575.7,0.000209,2]
[388888612,1759470645154,-802.40451064,0.00020907,2]
[388888613,1759470645163,-532.57,0.00020931,2]
[388888614,1759470645172,-525.62,0.00020931,2]
[388888615,1759470645181,-519.12,0.00020931,2]
[388888616,1759470645190,-2261.24,0.00020931,2]
[388888617,1759470645200,-1000.0,0.0002096,2]
[388888618,1759470645210,-532.15,0.00020968,2]
[388888619,1759470645219,-410.72230234,0.0002097,2]
[388888620,1759470645228,-1564.0,0.00020977,2]
[388888621,1759470645238,-167.81,0.00020978,2]
[388888622,1759470645248,-12863.55,0.00021,2]
[388888623,1759470645258,-8575.7,0.00021,2]
[388888624,1759470645268,-802.40451064,0.0002106,2]
[388888625,1759470645278,-2393.2,0.00021078,2]
[388888626,1759470645288,-350.98,0.00021078,2]
[388888627,1759470645299,-240.17,0.00021078,2]
[388888628,1759470645308,-545.4,0.00021078,2]
[388888629,1759470645320,-453.00253934,0.00021095,2]
[388888630,1759470645329,-854.11245203,0.00021111,2]
[388888631,1759470645338,-1216.98,0.00021178,2]
[388888632,1759470645347,-168.49,0.00021178,2]
[388888633,1759470645356,-554.59,0.00021178,2]
[388888634,1759470645366,-167.81,0.00021178,2]
[388888635,1759470645375,-824.79,0.00021178,2]
[388888636,1759470645384,-802.40451064,0.00021213,2]
[388888637,1759470645394,-1564.0,0.00021215,2]
[388888638,1759470645403,-335.12,0.00021219,2]
[388888639,1759470645412,-495.28277635,0.0002122,2]
[388888640,1759470645422,-1564.0,0.0002124,2]
[388888641,1759470645431,-1564.0,0.00021248,2]
[388888642,1759470645441,-1564.0,0.00021294,2]
[388888643,1759470645450,-537.56301335,0.00021345,2]
[388888644,1759470645462,-161.35260951,0.0002135,2]
[388888645,1759470645471,-1564.0,0.00021354,2]
[388888646,1759470645480,-802.40451064,0.00021367,2]
[388888647,1759470645489,-854.11245203,0.00021367,2]
[388888648,1759470645498,-150.0,0.0002138,2]
[388888649,1759470645507,-1564.0,0.0002146,2]
[388888650,1759470645517,-1564.0,0.00021465,2]
[388888651,1759470645526,-579.84325036,0.00021469,2]
[388888652,1759470645536,-520.40419476,0.00021499,2]
[388888653,1759470645545,-204.40640984,0.00021499,2]
[388888654,1759470645554,-12863.55,0.000215,2]
[388888655,1759470645563,-8575.7,0.000215,2]
[388888656,1759470645572,-802.40451064,0.0002152,2]
[388888657,1759470645581,-61436.29190199,0.00021531,2]
[388888658,1759470645591,-16304.34077494,0.00021531,2]
[388888659,1759470645600,-16304.34077494,0.00021533,2]
[388888660,1759470645609,-5788.89506116,0.00021539,2]
[388888661,1759470645619,-1823.80805711,0.00021547,2]
[388888662,1759470645628,-1823.80805711,0.00021555,2]
[388888663,1759470645637,-14619.99213301,0.0002156,2]
[388888664,1759470645647,-6462.4539196,0.00021564,2]
[388888665,1759470645659,-16304.34077494,0.00021567,2]
[388888666,1759470645669,-2632.18316804,0.0002157,2]
[388888667,1759470645679,-470.0011261,0.0002157,2]
[388888668,1759470645689,-5788.89506116,0.0002157,2]
[388888669,1759470645698,-2632.18316804,0.00021572,2]
[388888670,1759470645708,-2632.18316804,0.00021573,2]
[388888671,1759470645720,-61436.29190199,0.00021575,2]
[388888672,1759470645733,-61436.29190199,0.00021581,2]
[388888673,1759470645743,-6462.4539196,0.00021589,2]
[388888674,1759470645752,-2632.18316804,0.0002159,2]
[388888675,1759470645762,-622.12348736,0.00021594,2]
[388888676,1759470645772,-470.0011261,0.00021595,2]
[388888677,1759470645783,-16304.34077494,0.00021596,2]
[388888678,1759470645792,-167.81,0.000216,2]
[388888679,1759470645802,-1430.0,0.000216,2]
[388888680,1759470645812,-1000.0,0.000216,2]
[388888681,1759470645822,-472.65298285,0.00021603,2]
[388888682,1759470645832,-6462.4539196,0.00021607,2]
[388888683,1759470645841,-5788.89506116,0.00021609,2]
[388888684,1759470645850,-1823.80805711,0.00021609,2]
[388888685,1759470645860,-14619.99213301,0.00021615,2]
[388888686,1759470645870,-14619.99213301,0.00021617,2]
[388888687,1759470645879,-854.11245203,0.00021622,2]
[388888689,1759470646188,-1564.0,0.00021626,2]
[388888690,1759470646199,-531.19,0.00021632,2]
[388888691,1759470646211,-16304.34077494,0.00021635,2]
[388888692,1759470646222,-61436.29190199,0.00021636,2]
[388888693,1759470646232,-470.0011261,0.00021636,2]
[388888694,1759470646244,-178.3315762,0.0002164,2]
[388888695,1759470646254,-301.04,0.00021641,2]
[388888696,1759470646265,-300.42,0.00021641,2]
[388888697,1759470646277,-14619.99213301,0.00021642,2]
[388888698,1759470646287,-472.65298285,0.00021647,2]
[388888699,1759470646298,-178.3315762,0.00021647,2]
[388888700,1759470646309,-470.0011261,0.0002165,2]
[388888701,1759470646318,-524.67,0.00021652,2]
[388888702,1759470646328,-1823.80805711,0.00021654,2]
[388888703,1759470646338,-5788.89506116,0.00021655,2]
[388888704,1759470646347,-1823.80805711,0.00021658,2]
[388888705,1759470646356,-5788.89506116,0.00021662,2]
[388888706,1759470646366,-6462.4539196,0.00021663,2]
[388888707,1759470646375,-516.64,0.00021672,2]
[388888708,1759470646385,-178.3315762,0.00021672,2]
[388888709,1759470646394,-802.40451064,0.00021673,2]
[388888710,1759470646404,-472.65298285,0.00021676,2]
[388888711,1759470646413,-472.65298285,0.00021678,2]
[388888712,1759470646423,-472.65298285,0.0002168,2]
[388888713,1759470646432,-6462.4539196,0.0002168,2]
[388888714,1759470646442,-178.3315762,0.00021682,2]
[388888715,1759470646451,-61436.29190199,0.00021684,2]
[388888716,1759470646460,-178.3315762,0.00021689,2]
[388888717,1759470646470,-470.0011261,0.00021694,2]
[388888718,1759470646479,-14619.99213301,0.00021695,2]
[388888719,1759470646488,-2632.18316804,0.00021697,2]
[388888720,1759470646499,-691.82,0.000217,7]
[388888721,1759470646511,-1219.0,0.000217,2]
[388888722,1759470646521,-529.65,0.00021701,2]
[388888723,1759470646531,-664.40372437,0.00021719,2]
[388888724,1759470646540,-276.4,0.0002176,2]
[388888725,1759470646550,-942.027,0.00021762,2]
[388888727,1759470646560,-201.29944258,0.00021767,2]
[388888728,1759470646570,-150.0,0.00021767,2]
[388888729,1759470646581,-2290.0,0.00021767,2]
[388888730,1759470646592,-500.0,0.00021767,2]
[388888731,1759470646602,-201.96947291,0.00021767,2]
[388888732,1759470646612,-500.0,0.00021767,2]
[388888733,1759470646624,-1161.0,0.00021767,2]
[388888734,1759470646635,-150.0,0.00021767,2]
[388888735,1759470646645,-192.14958119,0.00021767,2]
[388888736,1759470646654,-150.0,0.00021767,2]
[388888737,1759470646664,-150.0,0.00021767,2]
[388888738,1759470646673,-500.0,0.00021767,2]
[388888739,1759470646683,-300.42,0.00021778,2]
[388888740,1759470646693,-1797.26287733,0.0002179,2]
[388888741,1759470646704,-6568.51166812,0.000218,2]
[388888742,1759470646713,-3399.0,0.00021826,2]
[388888743,1759470646723,-2045.0,0.00021826,2]
[388888744,1759470646733,-787.0,0.00021826,2]
[388888745,1759470646746,-570.0,0.00021826,2]
[388888746,1759470646755,-603.0,0.00021826,2]
[388888747,1759470646765,-1306.0,0.00021826,2]
[388888748,1759470646775,-1585.0,0.00021826,2]
[388888749,1759470646784,-817.0,0.00021826,2]
[388888750,1759470646794,-6234.0,0.00021826,2]
[388888751,1759470646803,-4234.0,0.00021826,2]
[388888752,1759470646813,-802.40451064,0.00021827,2]
[388888753,1759470646823,-706.68396137,0.00021844,2]
[388888754,1759470646832,-887.77907655,0.00021848,2]
[388888755,1759470646842,-1038.05156579,0.00021861,2]
[388888756,1759470646851,-150.91,0.0002187,2]
[388888757,1759470646860,-150.91,0.0002187,2]
[388888758,1759470646870,-150.91,0.0002187,2]
[388888759,1759470646880,-150.91,0.0002187,2]
[388888760,1759470646889,-150.91,0.0002187,2]
[388888761,1759470646899,-150.91,0.0002187,2]
[388888762,1759470646907,-279.20652541,0.0002187,2]
[388888763,1759470646917,-501.00735924,0.00021873,2]
[388888764,1759470646927,-200.0,0.00021873,2]
[388888765,1759470646936,-500.67894767,0.00021873,2]
[388888766,1759470646946,-500.0,0.00021873,2]
[388888767,1759470646956,-854.11245203,0.00021878,2]
[388888768,1759470646965,-1639.41410117,0.00021879,2]
[388888769,1759470646974,-300.0,0.00021879,2]
[388888770,1759470646984,-300.0,0.00021879,2]
[388888771,1759470646994,-666.0,0.00021879,2]
[388888772,1759470647004,-951.0,0.0002188,2]
[388888773,1759470647016,-517.27,0.0002188,2]
[388888774,1759470647026,-1281033.06493309,0.0002188,2]
[388888775,1759470647036,-151.0,0.0002188,2]
[388888776,1759470647046,-4040.758702,0.0002188,2]
[388888777,1759470647056,-489.068902,0.0002188,2]
[388888778,1759470647066,-151.0,0.0002188,2]
[388888779,1759470647077,-4040.758702,0.0002188,2]
[388888780,1759470647087,-151.0,0.0002188,2]
[388888781,1759470647098,-489.068902,0.0002188,2]
[388888782,1759470647108,-4040.758702,0.0002188,2]
[388888783,1759470647118,-489.068902,0.0002188,2]
[388888784,1759470647131,-4040.758702,0.0002188,2]
[388888785,1759470647141,-489.068902,0.0002188,2]
[388888786,1759470647150,-368.851244,0.0002188,2]
[388888787,1759470647161,-151.0,0.0002188,2]
[388888788,1759470647171,-151.0,0.0002188,2]
[388888789,1759470647181,-279.923436,0.0002188,2]
[388888790,1759470647191,-368.851244,0.0002188,2]
[388888791,1759470647202,-151.0,0.0002188,2]
[388888792,1759470647213,-279.923436,0.0002188,2]
[388888793,1759470647224,-152.386642,0.0002188,2]
[388888794,1759470647235,-368.851244,0.0002188,2]
[388888795,1759470647244,-151.0,0.0002188,2]
[388888796,1759470647255,-151.0,0.0002188,2]
[388888797,1759470647267,-279.923436,0.0002188,2]
[388888798,1759470647276,-151.0,0.0002188,2]
[388888799,1759470647285,-151.0,0.0002188,2]
[388888800,1759470647295,-279.923436,0.0002188,2]
[388888801,1759470647306,-151.0,0.0002188,2]
[388888802,1759470647316,-151.0,0.0002188,2]
[388888803,1759470647327,-151.0,0.0002188,2]
[388888804,1759470647339,-151.931563,0.0002188,2]
[388888805,1759470647348,-151.0,0.0002188,2]
[388888806,1759470647357,-368.851244,0.0002188,2]
[388888807,1759470647366,-151.0,0.0002188,2]
[388888808,1759470647375,-329.972629,0.0002188,2]
[388888809,1759470647384,-329.972629,0.0002188,2]
[388888810,1759470647393,-329.972629,0.0002188,2]
[388888811,1759470647403,-329.972629,0.0002188,2]
[388888812,1759470647412,-151.0,0.0002188,2]
[388888813,1759470647421,-151.0,0.0002188,2]
[388888814,1759470647431,-151.0,0.0002188,2]
[388888815,1759470647440,-151.0,0.0002188,2]
[388888816,1759470647451,-932.756791,0.0002188,2]
[388888817,1759470647460,-932.756791,0.0002188,2]
[388888818,1759470647469,-932.756791,0.0002188,2]
[388888819,1759470647478,-932.756791,0.0002188,2]
[388888820,1759470647487,-151.0,0.0002188,2]
[388888821,1759470647496,-151.0,0.0002188,2]
[388888822,1759470647505,-151.0,0.0002188,2]
[388888823,1759470647515,-151.0,0.0002188,2]
[388888824,1759470647526,-151.0,0.0002188,2]
[388888825,1759470647535,-151.0,0.0002188,2]
[388888826,1759470647546,-151.0,0.0002188,2]
[388888827,1759470647555,-151.0,0.0002188,2]
[388888828,1759470647565,-151.0,0.0002188,2]
[388888829,1759470647574,-460.006576,0.0002188,2]
[388888830,1759470647585,-460.006576,0.0002188,2]
[388888831,1759470647595,-460.006576,0.0002188,2]
[388888832,1759470647604,-151.0,0.0002188,2]
[388888833,1759470647614,-151.0,0.0002188,2]
[388888834,1759470647624,-151.0,0.0002188,2]
[388888835,1759470647633,-460.006576,0.0002188,2]
[388888836,1759470647642,-151.0,0.0002188,2]
[388888837,1759470647652,-178.322567,0.0002188,2]
[388888838,1759470647661,-337.273855,0.0002188,2]
[388888839,1759470647670,-337.273855,0.0002188,2]
[388888840,1759470647680,-337.273855,0.0002188,2]
[388888841,1759470647689,-337.273855,0.0002188,2]
[388888842,1759470647699,-409.85807,0.0002188,2]
[388888843,1759470647708,-409.85807,0.0002188,2]
[388888844,1759470647717,-151.0,0.0002188,2]
[388888845,1759470647728,-409.85807,0.0002188,2]
[388888846,1759470647740,-409.85807,0.0002188,2]
[388888847,1759470647750,-163.074967,0.0002188,2]
[388888848,1759470647759,-151.0,0.0002188,2]
[388888849,1759470647770,-373.09587474,0.0002188,2]
[388888850,1759470647780,-153.690555,0.0002188,2]
[388888851,1759470647790,-1230.643129,0.0002188,2]
[388888852,1759470647800,-151.0,0.0002188,2]
[388888853,1759470647810,-1230.643129,0.0002188,2]
[388888854,1759470647823,-151.0,0.0002188,2]
[388888855,1759470647833,-1230.643129,0.0002188,2]
[388888856,1759470647842,-151.0,0.0002188,2]
[388888857,1759470647853,-1230.643129,0.0002188,2]
[388888858,1759470647863,-151.0,0.0002188,2]
[388888859,1759470647872,-247.861337,0.0002188,2]
[388888860,1759470647882,-151.0,0.0002188,2]
[388888861,1759470647892,-151.0,0.0002188,2]
[388888862,1759470647901,-151.0,0.0002188,2]
[388888863,1759470647911,-151.0,0.0002188,2]
[388888864,1759470647920,-151.0,0.0002188,2]
[388888865,1759470647930,-151.0,0.0002188,2]
[388888866,1759470647939,-151.0,0.0002188,2]
[388888867,1759470647948,-150.91,0.0002189,2]
[388888868,1759470647958,-2027.0,0.0002189,2]